[Event "*** Titled Tuesday Blitz"]
[Site "Chess.com"]
[Date "2019.06.04"]
[Round "1"]
[White "Jabberwockiez"]
[Black "ulises2013"]
[Result "0-1"]
[WhiteElo "2218"]
[BlackElo "2585"]
[TimeControl "180+2"]
[EndTime "13:05:09 PDT"]
[Termination "ulises2013 won by resignation"]

1. e4 {[%clk 0:02:58.2]} 1... g6 {[%clk 0:03:00.6]} 2. d4 {[%clk 0:02:58.8]}
2... Bg7 {[%clk 0:03:01.8]} 3. Nf3 {[%clk 0:03:00.3]} 3... c5 {[%clk 0:03:03.1]}
4. c3 {[%clk 0:03:01.9]} 4... cxd4 {[%clk 0:03:04.1]} 5. cxd4 {[%clk 0:03:03.8]}
5... d5 {[%clk 0:03:05.7]} 6. e5 {[%clk 0:03:04.6]} 6... Bg4 {[%clk 0:03:03.6]}
7. Nc3 {[%clk 0:03:03.3]} 7... Nc6 {[%clk 0:03:02.6]} 8. Be2 {[%clk 0:03:04.4]}
8... Nh6 {[%clk 0:03:03.1]} 9. O-O {[%clk 0:03:04.9]} 9... Nf5 {[%clk
0:03:03.2]} 10. Be3 {[%clk 0:03:02]} 10... O-O {[%clk 0:03:01.4]} 11. h3 {[%clk
0:02:59.3]} 11... Bxf3 {[%clk 0:03:02.3]} 12. Bxf3 {[%clk 0:03:01.2]} 12... e6
{[%clk 0:03:03.9]} 13. Qd2 {[%clk 0:02:58.6]} 13... f6 {[%clk 0:03:04.5]} 14.
exf6 {[%clk 0:02:43.8]} 14... Qxf6 {[%clk 0:03:02.7]} 15. Nb5 {[%clk 0:02:39.5]}
15... a6 {[%clk 0:02:59.8]} 16. Bg5 {[%clk 0:02:26.8]} 16... Qf7 {[%clk
0:02:58.4]} 17. Nc3 {[%clk 0:02:18]} 17... Ncxd4 {[%clk 0:02:57.6]} 18. Bg4
{[%clk 0:02:18.6]} 18... Rac8 {[%clk 0:02:56.2]} 19. Rad1 {[%clk 0:02:17.7]}
19... Kh8 {[%clk 0:02:54.7]} 20. Rfe1 {[%clk 0:02:18.4]} 20... b5 {[%clk
0:02:53.4]} 21. Ne2 {[%clk 0:02:12.5]} 21... Rc2 {[%clk 0:02:33.2]} 22. Qd3
{[%clk 0:02:10.5]} 22... Nxe2+ {[%clk 0:02:25.7]} 23. Rxe2 {[%clk 0:02:12.4]}
23... Rxb2 {[%clk 0:02:23.4]} 24. Rxb2 {[%clk 0:02:06.5]} 24... Bxb2 {[%clk
0:02:25.3]} 25. Bxf5 {[%clk 0:01:53.3]} 25... Qxf5 {[%clk 0:02:24.3]} 26. Bh6
{[%clk 0:01:54.5]} 26... Qxd3 {[%clk 0:02:20.8]} 27. Rxd3 {[%clk 0:01:56.4]}
27... Rc8 {[%clk 0:02:21.5]} 28. Rd2 {[%clk 0:01:55.6]} 28... Bg7 {[%clk
0:02:20.1]} 29. Bxg7+ {[%clk 0:01:51.5]} 29... Kxg7 {[%clk 0:02:22]} 30. Re2
{[%clk 0:01:53]} 30... Kf6 {[%clk 0:02:23]} 31. f4 {[%clk 0:01:54.3]} 31... Rc3
{[%clk 0:02:22.1]} 32. Kf2 {[%clk 0:01:55.3]} 32... h5 {[%clk 0:02:22.6]} 33. g4
{[%clk 0:01:55.4]} 33... Rxh3 {[%clk 0:02:22.2]} 34. g5+ {[%clk 0:01:56.5]}
34... Ke7 {[%clk 0:02:18.1]} 35. Kg2 {[%clk 0:01:56.5]} 35... Ra3 {[%clk
0:02:17.8]} 36. f5 {[%clk 0:01:57.4]} 36... gxf5 {[%clk 0:02:18.8]} 37. g6
{[%clk 0:01:58.8]} 37... Kf6 {[%clk 0:02:17.4]} 38. g7 {[%clk 0:01:59.2]} 38...
Kxg7 {[%clk 0:02:18.6]} 39. Rxe6 {[%clk 0:01:59.6]} 39... Rxa2+ {[%clk
0:02:19.9]} 40. Kf3 {[%clk 0:02:00.9]} 40... b4 {[%clk 0:02:18.6]} 41. Rb6
{[%clk 0:02:01.3]} 41... a5 {[%clk 0:02:18.8]} 42. Rb5 {[%clk 0:02:02.8]} 42...
h4 {[%clk 0:02:18.9]} 43. Rxd5 {[%clk 0:02:03.8]} 43... h3 {[%clk 0:02:18.9]}
44. Rxf5 {[%clk 0:02:04.1]} 44... h2 {[%clk 0:02:20.2]} 45. Rh5 {[%clk
0:02:05.4]} 45... b3 {[%clk 0:02:20.4]} 46. Ke3 {[%clk 0:02:06.6]} 46... b2
{[%clk 0:02:21.4]} 47. Rxh2 {[%clk 0:02:07.3]} 47... b1=Q {[%clk 0:02:22.6]} 0-1

[Event "*** Titled Tuesday Blitz"]
[Site "Chess.com"]
[Date "2019.06.04"]
[Round "1"]
[White "ellennilssen"]
[Black "swayamsm"]
[Result "1-0"]
[WhiteElo "2009"]
[BlackElo "2485"]
[TimeControl "180+2"]
[EndTime "13:05:25 PDT"]
[Termination "ellennilssen won by resignation"]

1. d4 {[%clk 0:03:00.8]} 1... Nf6 {[%clk 0:02:59.8]} 2. c4 {[%clk 0:03:01.8]}
2... b6 {[%clk 0:02:59]} 3. Nc3 {[%clk 0:03:01.9]} 3... Bb7 {[%clk 0:02:46.9]}
4. Nf3 {[%clk 0:03:02.4]} 4... e6 {[%clk 0:02:43.6]} 5. a3 {[%clk 0:03:02]} 5...
d5 {[%clk 0:02:43.6]} 6. cxd5 {[%clk 0:03:02.6]} 6... Nxd5 {[%clk 0:02:44.2]} 7.
e4 {[%clk 0:03:03.7]} 7... Nxc3 {[%clk 0:02:44.4]} 8. bxc3 {[%clk 0:03:05.6]}
8... Bxe4 {[%clk 0:02:40.7]} 9. Ne5 {[%clk 0:03:06.8]} 9... Bd6 {[%clk
0:02:35.1]} 10. Qg4 {[%clk 0:03:07.1]} 10... Bg6 {[%clk 0:02:29.9]} 11. Bb5+
{[%clk 0:03:07.5]} 11... Kf8 {[%clk 0:02:23.9]} 12. Bg5 {[%clk 0:03:06.3]} 12...
f6 {[%clk 0:02:18.2]} 13. Qxe6 {[%clk 0:02:32.1]} 13... fxg5 {[%clk 0:02:01.8]}
14. O-O {[%clk 0:01:47.2]} 14... c6 {[%clk 0:02:01]} 15. f4 {[%clk 0:01:44.3]}
15... g4 {[%clk 0:01:44.9]} 16. Bxc6 {[%clk 0:01:40.8]} 16... Nxc6 {[%clk
0:01:41]} 17. Nd7+ {[%clk 0:01:39.2]} 17... Qxd7 {[%clk 0:01:42.3]} 18. Qxd7
{[%clk 0:01:40.6]} 18... Rd8 {[%clk 0:01:35.5]} 19. Qxc6 {[%clk 0:01:40.1]}
19... Bf5 {[%clk 0:01:36.1]} 20. Rae1 {[%clk 0:01:36.8]} 20... g6 {[%clk
0:01:37.3]} 21. Re3 {[%clk 0:01:34.8]} 21... Kg7 {[%clk 0:01:37.6]} 22. Rfe1
{[%clk 0:01:32.2]} 22... Bxf4 {[%clk 0:01:27.8]} 23. Re8 {[%clk 0:01:29.3]}
23... Rhxe8 {[%clk 0:01:06.2]} 24. Rxe8 {[%clk 0:01:29.8]} 24... Bd7 {[%clk
0:01:07.3]} 25. Re7+ {[%clk 0:01:28]} 1-0

[Event "*** Titled Tuesday Blitz"]
[Site "Chess.com"]
[Date "2019.06.04"]
[Round "1"]
[White "TomsKantans"]
[Black "ZenBull"]
[Result "1-0"]
[WhiteElo "2538"]
[BlackElo "2103"]
[TimeControl "180+2"]
[EndTime "13:05:33 PDT"]
[Termination "TomsKantans won on time"]

1. e4 {[%clk 0:03:01.9]} 1... c5 {[%clk 0:03:00.3]} 2. Nf3 {[%clk 0:03:02.7]}
2... e6 {[%clk 0:03:00.9]} 3. d4 {[%clk 0:03:03.4]} 3... cxd4 {[%clk 0:03:02.1]}
4. Nxd4 {[%clk 0:03:05.3]} 4... Nc6 {[%clk 0:03:03]} 5. Nc3 {[%clk 0:03:01.1]}
5... Qc7 {[%clk 0:03:04]} 6. Be3 {[%clk 0:03:01.1]} 6... a6 {[%clk 0:03:04.8]}
7. Qf3 {[%clk 0:02:54.3]} 7... Bd6 {[%clk 0:02:45.9]} 8. O-O-O {[%clk
0:02:52.8]} 8... Be5 {[%clk 0:02:45.7]} 9. g3 {[%clk 0:02:53.9]} 9... Nge7
{[%clk 0:02:43.5]} 10. Qe2 {[%clk 0:02:53.8]} 10... Nxd4 {[%clk 0:02:42.2]} 11.
Bxd4 {[%clk 0:02:54.8]} 11... Bxd4 {[%clk 0:02:42.3]} 12. Rxd4 {[%clk
0:02:56.7]} 12... Nc6 {[%clk 0:02:42.7]} 13. Rd2 {[%clk 0:02:48.4]} 13... b5
{[%clk 0:02:42.6]} 14. Bg2 {[%clk 0:02:47.1]} 14... Bb7 {[%clk 0:02:42]} 15.
Rhd1 {[%clk 0:02:42.2]} 15... O-O-O {[%clk 0:02:33.4]} 16. f4 {[%clk 0:02:39.9]}
16... Na5 {[%clk 0:02:13.3]} 17. e5 {[%clk 0:02:30.6]} 17... Nc4 {[%clk
0:02:04.6]} 18. Rd4 {[%clk 0:02:31.3]} 18... Nb6 {[%clk 0:01:57.1]} 19. a4
{[%clk 0:02:25.9]} 19... Bc6 {[%clk 0:01:44.2]} 20. axb5 {[%clk 0:02:23.4]}
20... axb5 {[%clk 0:01:38.6]} 21. Nxb5 {[%clk 0:02:23.9]} 21... Bxb5 {[%clk
0:01:28.2]} 22. Qxb5 {[%clk 0:02:25.8]} 22... Kb8 {[%clk 0:00:06]} 23. Rd6
{[%clk 0:02:12.9]} 1-0

[Event "*** Titled Tuesday Blitz"]
[Site "Chess.com"]
[Date "2019.06.04"]
[Round "1"]
[White "jamengrand"]
[Black "TST2014"]
[Result "0-1"]
[WhiteElo "2112"]
[BlackElo "2545"]
[TimeControl "180+2"]
[EndTime "13:05:37 PDT"]
[Termination "TST2014 won by resignation"]

1. e4 {[%clk 0:00:40.7]} 1... c5 {[%clk 0:02:57]} 2. Nf3 {[%clk 0:00:41.6]} 2...
Nc6 {[%clk 0:02:57.7]} 3. d4 {[%clk 0:00:42.9]} 3... cxd4 {[%clk 0:02:58.5]} 4.
Nxd4 {[%clk 0:00:44.8]} 4... Nf6 {[%clk 0:02:59.7]} 5. Nc3 {[%clk 0:00:45.7]}
5... d6 {[%clk 0:03:01]} 6. Bg5 {[%clk 0:00:45.7]} 6... e6 {[%clk 0:03:01.7]} 7.
f3 {[%clk 0:00:46.6]} 7... a6 {[%clk 0:02:59.7]} 8. Qd2 {[%clk 0:00:47.6]} 8...
Bd7 {[%clk 0:02:56.1]} 9. h4 {[%clk 0:00:48.5]} 9... h6 {[%clk 0:02:52.9]} 10.
Be3 {[%clk 0:00:48.9]} 10... h5 {[%clk 0:02:54.2]} 11. O-O-O {[%clk 0:00:49.3]}
11... Ne5 {[%clk 0:02:53.1]} 12. Kb1 {[%clk 0:00:49.8]} 12... b5 {[%clk
0:02:53.4]} 13. a3 {[%clk 0:00:49.4]} 13... Rb8 {[%clk 0:02:52.8]} 14. Be2
{[%clk 0:00:49]} 14... Be7 {[%clk 0:02:47.6]} 15. g3 {[%clk 0:00:47.6]} 15...
Qa5 {[%clk 0:02:46.1]} 16. Nb3 {[%clk 0:00:47.7]} 16... Qc7 {[%clk 0:02:45.8]}
17. f4 {[%clk 0:00:45.4]} 17... Nc4 {[%clk 0:02:46]} 18. Bxc4 {[%clk 0:00:46.2]}
18... bxc4 {[%clk 0:02:47.8]} 19. Nd4 {[%clk 0:00:44.8]} 19... Qb7 {[%clk
0:02:48.7]} 20. Qc1 {[%clk 0:00:44.3]} 20... Nxe4 {[%clk 0:02:48.9]} 21. Nxe4
{[%clk 0:00:43.6]} 21... Qxe4 {[%clk 0:02:50]} 22. Rhe1 {[%clk 0:00:42.2]} 22...
c3 {[%clk 0:02:48.1]} 23. b3 {[%clk 0:00:40.1]} 23... a5 {[%clk 0:02:18.8]} 24.
Ka2 {[%clk 0:00:40.7]} 24... a4 {[%clk 0:02:18.3]} 25. b4 {[%clk 0:00:42.1]}
25... Qd5+ {[%clk 0:02:19]} 26. Ka1 {[%clk 0:00:42.6]} 26... Qc4 {[%clk
0:02:18.4]} 27. Rd3 {[%clk 0:00:39.8]} 27... e5 {[%clk 0:02:18.5]} 28. fxe5
{[%clk 0:00:38.4]} 28... dxe5 {[%clk 0:02:19.3]} 29. Ne2 {[%clk 0:00:39.5]}
29... Be6 {[%clk 0:02:20.1]} 30. Nxc3 {[%clk 0:00:40]} 30... e4 {[%clk 0:02:21]}
31. Rd4 {[%clk 0:00:40.3]} 31... Qxc3+ {[%clk 0:02:22]} 0-1

[Event "*** Titled Tuesday Blitz"]
[Site "Chess.com"]
[Date "2019.06.04"]
[Round "1"]
[White "olksuna"]
[Black "Antipov_Mikhail_Al"]
[Result "1-0"]
[WhiteElo "2505"]
[BlackElo "2873"]
[TimeControl "180+2"]
[EndTime "13:05:39 PDT"]
[Termination "olksuna won by resignation"]

1. c4 {[%clk 0:02:58.8]} 1... Nf6 {[%clk 0:03:00.6]} 2. Nc3 {[%clk 0:02:58.6]}
2... g6 {[%clk 0:03:01.9]} 3. g3 {[%clk 0:02:59.3]} 3... Bg7 {[%clk 0:03:02.9]}
4. Bg2 {[%clk 0:03:00.8]} 4... O-O {[%clk 0:03:04.5]} 5. Nf3 {[%clk 0:03:00.2]}
5... d6 {[%clk 0:03:05]} 6. d4 {[%clk 0:03:00.4]} 6... Nc6 {[%clk 0:03:05]} 7.
O-O {[%clk 0:02:58.2]} 7... h6 {[%clk 0:03:01.6]} 8. h3 {[%clk 0:02:55.6]} 8...
a6 {[%clk 0:03:00.5]} 9. Re1 {[%clk 0:02:54.6]} 9... e5 {[%clk 0:02:59.9]} 10.
d5 {[%clk 0:02:48.8]} 10... Na5 {[%clk 0:02:54.1]} 11. Nd2 {[%clk 0:02:48.2]}
11... c5 {[%clk 0:02:53.8]} 12. dxc6 {[%clk 0:02:47.7]} 12... Nxc6 {[%clk
0:02:53.2]} 13. b3 {[%clk 0:02:46.1]} 13... Be6 {[%clk 0:02:52.3]} 14. Nde4
{[%clk 0:02:25.4]} 14... Qa5 {[%clk 0:02:38]} 15. Bd2 {[%clk 0:02:22.4]} 15...
Nxe4 {[%clk 0:02:36.2]} 16. Nxe4 {[%clk 0:02:24.3]} 16... Qc7 {[%clk 0:02:37.8]}
17. Rc1 {[%clk 0:02:23.1]} 17... Rfd8 {[%clk 0:02:29]} 18. Nc3 {[%clk 0:02:21]}
18... Ne7 {[%clk 0:02:26.9]} 19. e4 {[%clk 0:02:18.2]} 19... Qd7 {[%clk
0:02:05.2]} 20. Kh2 {[%clk 0:02:17.8]} 20... Nc6 {[%clk 0:02:05.9]} 21. Be3
{[%clk 0:02:09.7]} 21... b5 {[%clk 0:02:02.5]} 22. Nd5 {[%clk 0:01:59.3]} 22...
Rab8 {[%clk 0:01:58.4]} 23. cxb5 {[%clk 0:01:58.6]} 23... axb5 {[%clk
0:02:00.3]} 24. Rxc6 {[%clk 0:01:58.3]} 24... Bxd5 {[%clk 0:02:00.4]} 25. exd5
{[%clk 0:01:58.9]} 25... Ra8 {[%clk 0:01:51.2]} 26. Qc2 {[%clk 0:01:57.9]} 26...
Ra3 {[%clk 0:01:51.6]} 27. Rc7 {[%clk 0:01:51.6]} 27... Qe8 {[%clk 0:01:52.5]}
28. Re2 {[%clk 0:01:46.4]} 28... Rda8 {[%clk 0:01:52.3]} 29. Qc6 {[%clk
0:01:47.3]} 29... Qf8 {[%clk 0:01:51.2]} 30. Qxb5 {[%clk 0:01:43.4]} 30... Rxa2
{[%clk 0:01:50.7]} 31. Rxa2 {[%clk 0:01:43]} 31... Rxa2 {[%clk 0:01:52.6]} 32.
Qc6 {[%clk 0:01:38.5]} 32... Kh7 {[%clk 0:01:46.7]} 33. b4 {[%clk 0:01:39.1]}
33... f5 {[%clk 0:01:47.5]} 34. Rc8 {[%clk 0:01:26.9]} 34... Qf6 {[%clk
0:01:45.5]} 35. Qe8 {[%clk 0:01:27]} 35... g5 {[%clk 0:01:46.5]} 36. Qg8+ {[%clk
0:01:26.5]} 36... Kg6 {[%clk 0:01:47.9]} 37. Re8 {[%clk 0:01:27.7]} 1-0

[Event "*** Titled Tuesday Blitz"]
[Site "Chess.com"]
[Date "2019.06.04"]
[Round "1"]
[White "biostatistician"]
[Black "europa2012"]
[Result "1-0"]
[WhiteElo "2550"]
[BlackElo "2125"]
[TimeControl "180+2"]
[EndTime "13:05:44 PDT"]
[Termination "biostatistician won by resignation"]

1. d4 {[%clk 0:03:01.7]} 1... Nf6 {[%clk 0:03:00.8]} 2. Nf3 {[%clk 0:03:03.6]}
2... e6 {[%clk 0:03:01.6]} 3. c4 {[%clk 0:03:05.2]} 3... b6 {[%clk 0:03:02.6]}
4. Nc3 {[%clk 0:03:06.6]} 4... Bb7 {[%clk 0:03:04.1]} 5. Bg5 {[%clk 0:03:07.9]}
5... Bb4 {[%clk 0:03:05]} 6. Nd2 {[%clk 0:03:06.9]} 6... O-O {[%clk 0:03:01.3]}
7. f3 {[%clk 0:03:03.5]} 7... d5 {[%clk 0:02:57.4]} 8. a3 {[%clk 0:03:02.8]}
8... Bxc3 {[%clk 0:02:57.4]} 9. bxc3 {[%clk 0:03:04.7]} 9... c5 {[%clk
0:02:52.5]} 10. e3 {[%clk 0:03:05.6]} 10... Nbd7 {[%clk 0:02:52.3]} 11. Be2
{[%clk 0:03:05.5]} 11... Re8 {[%clk 0:02:53.4]} 12. O-O {[%clk 0:03:06.7]} 12...
Qc7 {[%clk 0:02:51.8]} 13. Bf4 {[%clk 0:03:05.1]} 13... Qd8 {[%clk 0:02:47]} 14.
Bg3 {[%clk 0:02:59.4]} 14... Nf8 {[%clk 0:02:47.5]} 15. a4 {[%clk 0:02:55.5]}
15... Ng6 {[%clk 0:02:45.4]} 16. a5 {[%clk 0:02:56.4]} 16... Bc6 {[%clk
0:02:41.8]} 17. Qb3 {[%clk 0:02:55.5]} 17... Nd7 {[%clk 0:02:37]} 18. Rfb1
{[%clk 0:02:46.1]} 18... Qe7 {[%clk 0:02:32.9]} 19. Qa3 {[%clk 0:02:42.3]} 19...
Qg5 {[%clk 0:02:30.7]} 20. Nf1 {[%clk 0:02:39.3]} 20... f5 {[%clk 0:02:25.4]}
21. Qc1 {[%clk 0:02:38.9]} 21... Rf8 {[%clk 0:02:20.9]} 22. Bd6 {[%clk
0:02:31.8]} 22... Rf7 {[%clk 0:02:19.8]} 23. axb6 {[%clk 0:02:29.7]} 23... axb6
{[%clk 0:02:13.3]} 24. Rxa8+ {[%clk 0:02:31.6]} 24... Bxa8 {[%clk 0:02:14.7]}
25. Ra1 {[%clk 0:02:29.4]} 25... Bc6 {[%clk 0:02:14.7]} 26. Ra7 {[%clk
0:02:24.5]} 26... dxc4 {[%clk 0:02:10.4]} 27. Bxc4 {[%clk 0:02:21.5]} 27... Bxf3
{[%clk 0:02:04.2]} 28. g3 {[%clk 0:02:18.3]} 28... Bd5 {[%clk 0:02:04.7]} 29.
Bxd5 {[%clk 0:01:38.6]} 29... exd5 {[%clk 0:02:05.1]} 30. Ra8+ {[%clk
0:01:38.5]} 30... Ndf8 {[%clk 0:02:03.1]} 31. dxc5 {[%clk 0:01:37.6]} 31... bxc5
{[%clk 0:02:02.5]} 32. Bxc5 {[%clk 0:01:39.5]} 32... Ne5 {[%clk 0:02:00.3]} 33.
Qd1 {[%clk 0:01:38]} 33... Qg4 {[%clk 0:01:36.3]} 34. Qxd5 {[%clk 0:01:34.7]}
34... Nd7 {[%clk 0:01:37]} 35. Bxf8 {[%clk 0:01:31.3]} 35... Nxf8 {[%clk
0:01:35.8]} 36. Rxf8+ {[%clk 0:01:30.3]} 1-0

[Event "*** Titled Tuesday Blitz"]
[Site "Chess.com"]
[Date "2019.06.04"]
[Round "1"]
[White "Gordima"]
[Black "DivyaDeshmukh23"]
[Result "1-0"]
[WhiteElo "2750"]
[BlackElo "2387"]
[TimeControl "180+2"]
[EndTime "13:05:46 PDT"]
[Termination "Gordima won by resignation"]

1. Nf3 {[%clk 0:02:59]} 1... Nf6 {[%clk 0:02:59.8]} 2. c4 {[%clk 0:03:00.2]}
2... g6 {[%clk 0:02:58.6]} 3. Nc3 {[%clk 0:03:01.6]} 3... d5 {[%clk 0:03:00.1]}
4. cxd5 {[%clk 0:03:02.2]} 4... Nxd5 {[%clk 0:03:02]} 5. h4 {[%clk 0:03:03.8]}
5... Bg4 {[%clk 0:03:00.9]} 6. Qa4+ {[%clk 0:02:57.5]} 6... Bd7 {[%clk
0:02:58.8]} 7. Qb3 {[%clk 0:02:58]} 7... Bc6 {[%clk 0:02:53.5]} 8. Ne5 {[%clk
0:02:53.2]} 8... Bg7 {[%clk 0:02:48.2]} 9. Nxc6 {[%clk 0:02:54.2]} 9... bxc6
{[%clk 0:02:50.1]} 10. g3 {[%clk 0:02:46.9]} 10... Na6 {[%clk 0:02:45.9]} 11.
Qa4 {[%clk 0:02:41.2]} 11... Nb8 {[%clk 0:02:32.8]} 12. Bg2 {[%clk 0:02:41.7]}
12... O-O {[%clk 0:02:33.6]} 13. h5 {[%clk 0:02:43.2]} 13... a5 {[%clk 0:02:17]}
14. hxg6 {[%clk 0:02:39.5]} 14... fxg6 {[%clk 0:02:18.9]} 15. Qh4 {[%clk
0:02:40.3]} 15... h6 {[%clk 0:02:20.1]} 16. Qe4 {[%clk 0:02:30.4]} 16... Kh7
{[%clk 0:02:10.6]} 17. d4 {[%clk 0:02:17.1]} 17... Rf6 {[%clk 0:01:59.1]} 18.
Bg5 {[%clk 0:02:12.1]} 18... Rd6 {[%clk 0:01:59.3]} 19. Qh4 {[%clk 0:01:58.9]}
19... Qf8 {[%clk 0:01:50.5]} 20. Nxd5 {[%clk 0:01:53.6]} 20... Rxd5 {[%clk
0:01:40]} 21. Bxd5 {[%clk 0:01:53.5]} 21... cxd5 {[%clk 0:01:41.9]} 22. Bxe7
{[%clk 0:01:50.3]} 22... Qf5 {[%clk 0:01:43.2]} 23. Qf4 {[%clk 0:01:47.5]} 23...
Qc2 {[%clk 0:01:42.4]} 24. Rc1 {[%clk 0:01:45.8]} 24... Qxb2 {[%clk 0:01:42.9]}
25. Bf6 {[%clk 0:01:34]} 25... Bxf6 {[%clk 0:01:11.2]} 26. Rxh6+ {[%clk
0:01:34.7]} 26... Kg8 {[%clk 0:01:12.7]} 27. Rxg6+ {[%clk 0:01:35.6]} 27... Bg7
{[%clk 0:01:07.8]} 28. Rxg7+ {[%clk 0:01:36.8]} 28... Kxg7 {[%clk 0:01:08.3]}
29. Rxc7+ {[%clk 0:01:38.5]} 29... Kg6 {[%clk 0:01:07.7]} 30. Qd6+ {[%clk
0:01:29.6]} 1-0

[Event "*** Titled Tuesday Blitz"]
[Site "Chess.com"]
[Date "2019.06.04"]
[Round "1"]
[White "PowerThinking2650"]
[Black "Michael_Scofield01"]
[Result "0-1"]
[WhiteElo "2372"]
[BlackElo "2726"]
[TimeControl "180+2"]
[EndTime "13:05:48 PDT"]
[Termination "Michael_Scofield01 won by resignation"]

1. e4 {[%clk 0:03:01.9]} 1... e5 {[%clk 0:03:00.2]} 2. Nf3 {[%clk 0:03:02.3]}
2... Nc6 {[%clk 0:03:00.9]} 3. Nc3 {[%clk 0:03:02.8]} 3... Nf6 {[%clk
0:03:00.3]} 4. d4 {[%clk 0:03:03.6]} 4... exd4 {[%clk 0:03:00.1]} 5. Nxd4 {[%clk
0:03:04.3]} 5... Bb4 {[%clk 0:03:00.9]} 6. Nxc6 {[%clk 0:03:05.1]} 6... bxc6
{[%clk 0:03:01.1]} 7. Bd3 {[%clk 0:03:06.6]} 7... O-O {[%clk 0:03:01.2]} 8. O-O
{[%clk 0:03:07.2]} 8... d5 {[%clk 0:03:01.4]} 9. exd5 {[%clk 0:03:08.3]} 9...
cxd5 {[%clk 0:03:01.7]} 10. Bg5 {[%clk 0:03:09.6]} 10... c6 {[%clk 0:03:01.7]}
11. Qf3 {[%clk 0:03:10.8]} 11... h6 {[%clk 0:03:02.1]} 12. Bxf6 {[%clk
0:03:11.3]} 12... Qxf6 {[%clk 0:03:02.3]} 13. Qxf6 {[%clk 0:03:12.8]} 13... gxf6
{[%clk 0:03:03.1]} 14. Ne2 {[%clk 0:03:14.3]} 14... Re8 {[%clk 0:03:02.4]} 15.
Ng3 {[%clk 0:03:13.9]} 15... Bd7 {[%clk 0:02:51.3]} 16. Nf5 {[%clk 0:03:05.4]}
16... c5 {[%clk 0:02:50.1]} 17. Nxh6+ {[%clk 0:02:57.9]} 17... Kf8 {[%clk
0:02:50.2]} 18. c3 {[%clk 0:02:42.7]} 18... Ba5 {[%clk 0:02:45.6]} 19. Nf5
{[%clk 0:02:31.7]} 19... c4 {[%clk 0:02:43.8]} 20. Bc2 {[%clk 0:02:22]} 20...
Bxf5 {[%clk 0:02:14.2]} 21. Bxf5 {[%clk 0:02:21.9]} 21... Re2 {[%clk 0:02:14.2]}
22. b4 {[%clk 0:01:44.9]} 22... cxb3 {[%clk 0:02:09.3]} 23. axb3 {[%clk
0:01:44.5]} 23... Bxc3 {[%clk 0:02:10.2]} 24. Rad1 {[%clk 0:01:42]} 24... d4
{[%clk 0:02:09.8]} 25. Bd3 {[%clk 0:01:42.4]} 25... Rb2 {[%clk 0:02:08.7]} 26.
Bc4 {[%clk 0:01:43.3]} 26... a5 {[%clk 0:02:04.9]} 27. g3 {[%clk 0:01:41.5]}
27... Rc8 {[%clk 0:02:05.1]} 28. Bd5 {[%clk 0:01:41.6]} 28... Rc5 {[%clk
0:02:04.8]} 29. Bc4 {[%clk 0:00:47.9]} 29... a4 {[%clk 0:02:04.9]} 30. Rb1
{[%clk 0:00:48.9]} 30... Rxb1 {[%clk 0:02:00.5]} 31. Rxb1 {[%clk 0:00:46.1]}
31... a3 {[%clk 0:02:01.7]} 0-1

[Event "*** Titled Tuesday Blitz"]
[Site "Chess.com"]
[Date "2019.06.04"]
[Round "1"]
[White "Drags95"]
[Black "Misha_Bilous"]
[Result "1-0"]
[WhiteElo "2797"]
[BlackElo "2426"]
[TimeControl "180+2"]
[EndTime "13:05:52 PDT"]
[Termination "Drags95 won on time"]

1. e4 {[%clk 0:03:00.8]} 1... c5 {[%clk 0:03:00.4]} 2. Nf3 {[%clk 0:03:02.1]}
2... d6 {[%clk 0:03:01.6]} 3. d4 {[%clk 0:03:03.6]} 3... cxd4 {[%clk 0:03:03.1]}
4. Nxd4 {[%clk 0:03:05.4]} 4... Nf6 {[%clk 0:03:04.4]} 5. Nc3 {[%clk 0:03:07.1]}
5... a6 {[%clk 0:03:05.8]} 6. Be3 {[%clk 0:03:03.8]} 6... e5 {[%clk 0:03:06.1]}
7. Nb3 {[%clk 0:03:02.9]} 7... Be6 {[%clk 0:03:07.1]} 8. Qd2 {[%clk 0:02:50.1]}
8... Nbd7 {[%clk 0:03:03.8]} 9. h3 {[%clk 0:02:50]} 9... h5 {[%clk 0:03:00.1]}
10. f4 {[%clk 0:02:49.3]} 10... Rc8 {[%clk 0:02:34.6]} 11. O-O-O {[%clk
0:02:45.8]} 11... b5 {[%clk 0:02:05.9]} 12. f5 {[%clk 0:02:46.6]} 12... Bc4
{[%clk 0:02:05.8]} 13. Bd3 {[%clk 0:02:48.1]} 13... Nb6 {[%clk 0:01:48.6]} 14.
Kb1 {[%clk 0:02:44.1]} 14... b4 {[%clk 0:01:20]} 15. Ne2 {[%clk 0:02:44.5]}
15... d5 {[%clk 0:01:15.5]} 16. exd5 {[%clk 0:02:28.3]} 16... Bd6 {[%clk
0:00:20.1]} 17. g4 {[%clk 0:02:02.7]} 17... e4 {[%clk 0:00:13]} 18. Bxb6 {[%clk
0:01:56.9]} 18... Qxb6 {[%clk 0:00:11.2]} 19. Bxc4 {[%clk 0:01:58.3]} 19... Rxc4
{[%clk 0:00:12.1]} 20. g5 {[%clk 0:01:50.7]} 20... Nd7 {[%clk 0:00:11.7]} 21.
Ned4 {[%clk 0:01:52.4]} 21... O-O {[%clk 0:00:04.1]} 22. Qe2 {[%clk 0:01:53.5]}
22... Rfc8 {[%clk 0:00:04.1]} 23. Qxh5 {[%clk 0:01:54.1]} 1-0

[Event "*** Titled Tuesday Blitz"]
[Site "Chess.com"]
[Date "2019.06.04"]
[Round "1"]
[White "Alliswell998"]
[Black "Rakhmanov_Aleksandr"]
[Result "0-1"]
[WhiteElo "2423"]
[BlackElo "2794"]
[TimeControl "180+2"]
[EndTime "13:05:52 PDT"]
[Termination "Rakhmanov_Aleksandr won by checkmate"]

1. e4 {[%clk 0:02:13.7]} 1... c5 {[%clk 0:02:59.9]} 2. Nc3 {[%clk 0:02:13.1]}
2... Nc6 {[%clk 0:02:59.5]} 3. f4 {[%clk 0:02:14.1]} 3... e6 {[%clk 0:03:00.4]}
4. Nf3 {[%clk 0:02:15.4]} 4... Nge7 {[%clk 0:03:01.4]} 5. d4 {[%clk 0:02:15.5]}
5... d5 {[%clk 0:03:00.5]} 6. Bb5 {[%clk 0:02:12]} 6... a6 {[%clk 0:03:00]} 7.
Bxc6+ {[%clk 0:02:11.5]} 7... Nxc6 {[%clk 0:03:01.9]} 8. dxc5 {[%clk 0:02:07]}
8... Bxc5 {[%clk 0:03:03.8]} 9. exd5 {[%clk 0:02:07.1]} 9... exd5 {[%clk
0:03:04.7]} 10. Qxd5 {[%clk 0:02:05.5]} 10... Qe7+ {[%clk 0:02:36.2]} 11. Ne5
{[%clk 0:02:00.6]} 11... O-O {[%clk 0:02:31.6]} 12. Ne4 {[%clk 0:01:55.5]} 12...
Ba7 {[%clk 0:02:24.8]} 13. Bd2 {[%clk 0:01:44.1]} 13... Rd8 {[%clk 0:02:22.4]}
14. Nxc6 {[%clk 0:01:39.9]} 14... bxc6 {[%clk 0:02:21.9]} 15. Qe5 {[%clk
0:01:40.4]} 15... Qh4+ {[%clk 0:01:55.1]} 16. g3 {[%clk 0:01:39.8]} 16... Qg4
{[%clk 0:01:55.9]} 17. Qg5 {[%clk 0:01:33.7]} 17... Qxg5 {[%clk 0:01:42.9]} 18.
Nxg5 {[%clk 0:01:35.6]} 18... Re8+ {[%clk 0:01:32.8]} 19. Kd1 {[%clk 0:01:21.8]}
19... Bg4+ {[%clk 0:01:33]} 20. Kc1 {[%clk 0:01:22.6]} 20... h6 {[%clk 0:01:34]}
21. h3 {[%clk 0:01:17.1]} 21... Be2 {[%clk 0:01:34.9]} 22. Nxf7 {[%clk
0:00:45.4]} 22... Kxf7 {[%clk 0:01:34.9]} 23. a4 {[%clk 0:00:47]} 23... Bf3
{[%clk 0:01:31.2]} 24. Re1 {[%clk 0:00:39]} 24... Rxe1+ {[%clk 0:01:29]} 25.
Bxe1 {[%clk 0:00:40.9]} 25... Rd8 {[%clk 0:01:29.7]} 26. Bd2 {[%clk 0:00:39.5]}
26... Be3 {[%clk 0:01:29.9]} 27. Bxe3 {[%clk 0:00:40.7]} 27... Rd1# {[%clk
0:01:29.9]} 0-1